[Event "December 19 Late 2023"]
[Site "https://www.chess.com"]
[Date "2023.12.19"]
[Round "10"]
[White "Khlebovich, Alexander"]
[Black "Lymar, Vladislav"]
[Result "0-1"]
[Board "36"]
[TimeControl "180+1"]
[WhiteFideId "4169123"]
[BlackFideId "14162180"]
[WhiteElo "2334"]
[BlackElo "2158"]
[WhiteTeam "RUS"]
[BlackTeam "UKR"]
[WhiteClock "0:00:00"]
[BlackClock "0:00:05"]

1. d4 {[%clk 0:02:59]}  d6 {[%clk 0:02:58]} 2. g3 {[%clk 0:02:58]}  e5 {[%clk 0:02:51]} 3. dxe5 {[%clk 0:02:59]}  dxe5 {[%clk 0:02:52]} 4. Qxd8+ {[%clk 0:02:58]}  Kxd8 {[%clk 0:02:53]} 5. Nc3 {[%clk 0:02:58]}  Be6 {[%clk 0:02:52]} 6. f4 {[%clk 0:02:54]}  Nd7 {[%clk 0:02:46]} 7. Nf3 {[%clk 0:02:52]}  f6 {[%clk 0:02:44]} 8. Bg2 {[%clk 0:02:44]}  Bc5 {[%clk 0:02:40]} 9. fxe5 {[%clk 0:02:42]}  c6 {[%clk 0:02:32]} 10. Bf4 {[%clk 0:02:28]}  g5 {[%clk 0:02:27]} 11. Bxg5 {[%clk 0:02:18]}  fxg5 {[%clk 0:02:24]} 12. Nxg5 {[%clk 0:02:18]}  Ke7 {[%clk 0:02:19]} 13. Rd1 {[%clk 0:02:01]}  Nxe5 {[%clk 0:02:14]} 14. Nce4 {[%clk 0:01:50]}  Be3 {[%clk 0:02:11]} 15. Nxe6 {[%clk 0:01:49]}  Kxe6 {[%clk 0:02:11]} 16. Rf1 {[%clk 0:01:46]}  Nh6 {[%clk 0:01:42]} 17. Bh3+ {[%clk 0:01:27]}  Ke7 {[%clk 0:01:42]} 18. Rf6 {[%clk 0:01:25]}  Nhg4 {[%clk 0:01:27]} 19. Bxg4 {[%clk 0:01:19]}  Nxg4 {[%clk 0:01:27]} 20. Rf3 {[%clk 0:01:18]}  Bb6 {[%clk 0:01:11]} 21. Nd6 {[%clk 0:01:06]}  Rhf8 {[%clk 0:01:01]} 22. Nf5+ {[%clk 0:00:51]}  Ke6 {[%clk 0:00:50]} 23. Ng7+ {[%clk 0:00:38]}  Ke7 {[%clk 0:00:48]} 24. Nf5+ {[%clk 0:00:37]}  Ke6 {[%clk 0:00:49]} 25. Ng7+ {[%clk 0:00:37]}  Ke5 {[%clk 0:00:49]} 26. Rd7 {[%clk 0:00:37]}  Nxh2 {[%clk 0:00:32]} 27. Re7+ {[%clk 0:00:36]}  Kd6 {[%clk 0:00:32]} 28. Re6+ {[%clk 0:00:36]}  Kd7 {[%clk 0:00:24]} 29. Rd3+ {[%clk 0:00:35]}  Kc8 {[%clk 0:00:19]} 30. Re7 {[%clk 0:00:33]}  Bd8 {[%clk 0:00:17]} 31. Re4 {[%clk 0:00:30]}  h5 {[%clk 0:00:15]} 32. Nxh5 {[%clk 0:00:26]}  a5 {[%clk 0:00:15]} 33. a4 {[%clk 0:00:26]}  b6 {[%clk 0:00:11]} 34. Nf4 {[%clk 0:00:22]}  Ra7 {[%clk 0:00:09]} 35. Ne6 {[%clk 0:00:20]}  Re8 {[%clk 0:00:07]} 36. Rxd8+ {[%clk 0:00:20]}  Rxd8 {[%clk 0:00:08]} 37. Nxd8 {[%clk 0:00:21]}  Kxd8 {[%clk 0:00:09]} 38. Rh4 {[%clk 0:00:21]}  Rg7 {[%clk 0:00:08]} 39. Rxh2 {[%clk 0:00:21]}  Rxg3 {[%clk 0:00:09]} 40. Kd2 {[%clk 0:00:21]}  Rg4 {[%clk 0:00:08]} 41. b3 {[%clk 0:00:21]}  Kc7 {[%clk 0:00:09]} 42. Rh3 {[%clk 0:00:21]}  Kd6 {[%clk 0:00:09]} 43. Rd3+ {[%clk 0:00:22]}  Kc5 {[%clk 0:00:07]} 44. Kc3 {[%clk 0:00:21]}  Rh4 {[%clk 0:00:07]} 45. Rf3 {[%clk 0:00:20]}  Re4 {[%clk 0:00:07]} 46. e3 {[%clk 0:00:20]}  Re5 {[%clk 0:00:07]} 47. Kd3 {[%clk 0:00:20]}  Rd5+ {[%clk 0:00:07]} 48. Kc3 {[%clk 0:00:20]}  Re5 {[%clk 0:00:07]} 49. Rg3 {[%clk 0:00:20]}  b5 {[%clk 0:00:06]} 50. axb5 {[%clk 0:00:20]}  cxb5 {[%clk 0:00:07]} 51. Kd3 {[%clk 0:00:20]}  Rd5+ {[%clk 0:00:07]} 52. Kc3 {[%clk 0:00:20]}  Re5 {[%clk 0:00:08]} 53. Rf3 {[%clk 0:00:19]}  Rg5 {[%clk 0:00:05]} 54. e4 {[%clk 0:00:18]}  Rg4 {[%clk 0:00:06]} 55. Rf5+ {[%clk 0:00:13]}  Kc6 {[%clk 0:00:07]} 56. Kd4 {[%clk 0:00:14]}  Rg2 {[%clk 0:00:06]} 57. c4 {[%clk 0:00:12]}  bxc4 {[%clk 0:00:05]} 58. bxc4 {[%clk 0:00:13]}  a4 {[%clk 0:00:03]} 59. Ra5 {[%clk 0:00:11]}  Ra2 {[%clk 0:00:03]} 60. e5 {[%clk 0:00:10]}  Ra1 {[%clk 0:00:02]} 61. Ra6+ {[%clk 0:00:09]}  Kd7 {[%clk 0:00:02]} 62. Kd5 {[%clk 0:00:08]}  a3 {[%clk 0:00:02]} 63. e6+ {[%clk 0:00:06]}  Ke7 {[%clk 0:00:02]} 64. Ra7+ {[%clk 0:00:06]}  Ke8 {[%clk 0:00:03]} 65. Kc6 {[%clk 0:00:04]}  a2 {[%clk 0:00:03]} 66. c5 {[%clk 0:00:05]}  Kd8 {[%clk 0:00:03]} 67. Ra8+ {[%clk 0:00:04]}  Ke7 {[%clk 0:00:03]} 68. Kb7 {[%clk 0:00:04]}  Rb1+ {[%clk 0:00:03]} 69. Kc7 {[%clk 0:00:04]}  a1=Q {[%clk 0:00:04]} 70. Rxa1 {[%clk 0:00:05]}  Rxa1 {[%clk 0:00:05]} 71. c6 {[%clk 0:00:05]}  Kxe6 {[%clk 0:00:04]} 72. Kb7 {[%clk 0:00:05]}  Rb1+ {[%clk 0:00:04]} 73. Kc7 {[%clk 0:00:03]}  Ke7 {[%clk 0:00:04]} 74. Kc8 {[%clk 0:00:03]}  Kd6 {[%clk 0:00:05]} 75. c7 {[%clk 0:00:04]}  Rc1 {[%clk 0:00:05]} 76. Kd8 {[%clk 0:00:00]}  Rxc7 {[%clk 0:00:05]} 0-1

[Event "December 19 Late 2023"]
[Site "https://www.chess.com"]
[Date "2023.12.19"]
[Round "10"]
[White "Sadovsky, Artem"]
[Black "Adewumi, Tanitoluwa"]
[Result "0-1"]
[Board "37"]
[TimeControl "180+1"]
[WhiteFideId "4155840"]
[BlackFideId "30966396"]
[WhiteElo "2314"]
[BlackElo "2325"]
[WhiteTeam "FID"]
[BlackTeam "USA"]
[WhiteClock "0:00:00"]
[BlackClock "0:00:07"]

1. Nf3 {[%clk 0:02:56]}  Nf6 {[%clk 0:02:59]} 2. e3 {[%clk 0:02:56]}  e6 {[%clk 0:02:55]} 3. b3 {[%clk 0:02:56]}  d5 {[%clk 0:02:54]} 4. Bb2 {[%clk 0:02:57]}  Bd6 {[%clk 0:02:54]} 5. Be2 {[%clk 0:02:57]}  O-O {[%clk 0:02:53]} 6. c4 {[%clk 0:02:57]}  c6 {[%clk 0:02:54]} 7. O-O {[%clk 0:02:57]}  Nbd7 {[%clk 0:02:55]} 8. d4 {[%clk 0:02:57]}  Qc7 {[%clk 0:02:54]} 9. Nc3 {[%clk 0:02:58]}  Re8 {[%clk 0:02:54]} 10. Rc1 {[%clk 0:02:56]}  Qb8 {[%clk 0:02:52]} 11. h3 {[%clk 0:02:49]}  a6 {[%clk 0:02:52]} 12. Bd3 {[%clk 0:02:43]}  e5 {[%clk 0:02:40]} 13. dxe5 {[%clk 0:02:37]}  Nxe5 {[%clk 0:02:40]} 14. Nxe5 {[%clk 0:02:36]}  Bxe5 {[%clk 0:02:41]} 15. cxd5 {[%clk 0:02:35]}  cxd5 {[%clk 0:02:41]} 16. Qd2 {[%clk 0:02:20]}  d4 {[%clk 0:02:35]} 17. exd4 {[%clk 0:02:16]}  Bf4 {[%clk 0:02:35]} 18. Qc2 {[%clk 0:01:59]}  Bxc1 {[%clk 0:02:34]} 19. Rxc1 {[%clk 0:01:54]}  Bd7 {[%clk 0:02:30]} 20. d5 {[%clk 0:01:44]}  Qd6 {[%clk 0:02:26]} 21. Qd2 {[%clk 0:01:36]}  Rac8 {[%clk 0:02:23]} 22. Bb1 {[%clk 0:01:32]}  b5 {[%clk 0:02:16]} 23. Qd4 {[%clk 0:01:28]}  b4 {[%clk 0:02:09]} 24. Ne4 {[%clk 0:01:12]}  Rxc1+ {[%clk 0:02:00]} 25. Bxc1 {[%clk 0:01:13]}  Nxe4 {[%clk 0:01:58]} 26. Bxe4 {[%clk 0:01:11]}  f5 {[%clk 0:01:53]} 27. Bb2 {[%clk 0:01:04]}  Re7 {[%clk 0:01:24]} 28. Bd3 {[%clk 0:00:55]}  f4 {[%clk 0:01:18]} 29. Bc4 {[%clk 0:00:27]}  f3 {[%clk 0:00:18]} 30. g3 {[%clk 0:00:27]}  Bxh3 {[%clk 0:00:17]} 31. Qd2 {[%clk 0:00:16]}  Bg2 {[%clk 0:00:12]} 32. Kh2 {[%clk 0:00:00]}  Re1 {[%clk 0:00:07]} 0-1

[Event "December 19 Late 2023"]
[Site "https://www.chess.com"]
[Date "2023.12.19"]
[Round "10"]
[White "Bardyk, Artem"]
[Black "Kotlyar, Kirill"]
[Result "1-0"]
[Board "42"]
[TimeControl "180+1"]
[WhiteFideId "34349979"]
[BlackFideId "24145599"]
[WhiteElo "2300"]
[BlackElo "2397"]
[WhiteTeam "RUS"]
[BlackTeam "RUS"]
[WhiteClock "0:00:51"]
[BlackClock "0:00:16"]

1. e4 {[%clk 0:03:00]}  e5 {[%clk 0:02:59]} 2. d4 {[%clk 0:02:59]}  exd4 {[%clk 0:02:57]} 3. Qxd4 {[%clk 0:03:00]}  Nc6 {[%clk 0:02:55]} 4. Qd3 {[%clk 0:03:01]}  Nf6 {[%clk 0:02:48]} 5. Nc3 {[%clk 0:02:59]}  Bb4 {[%clk 0:02:47]} 6. Bd2 {[%clk 0:02:58]}  O-O {[%clk 0:02:43]} 7. Nge2 {[%clk 0:02:58]}  Re8 {[%clk 0:02:43]} 8. O-O-O {[%clk 0:02:57]}  d6 {[%clk 0:02:40]} 9. Bg5 {[%clk 0:02:56]}  h6 {[%clk 0:02:33]} 10. Bxf6 {[%clk 0:02:54]}  Qxf6 {[%clk 0:02:34]} 11. Nd5 {[%clk 0:02:53]}  Qd8 {[%clk 0:02:34]} 12. Nxb4 {[%clk 0:02:47]}  Nxb4 {[%clk 0:02:34]} 13. Qd2 {[%clk 0:02:48]}  Nc6 {[%clk 0:02:31]} 14. Nc3 {[%clk 0:02:46]}  Be6 {[%clk 0:02:26]} 15. f4 {[%clk 0:02:46]}  a5 {[%clk 0:02:16]} 16. Rg1 {[%clk 0:02:44]}  a4 {[%clk 0:02:15]} 17. a3 {[%clk 0:02:43]}  Qh4 {[%clk 0:02:11]} 18. g3 {[%clk 0:02:40]}  Qf6 {[%clk 0:02:09]} 19. Bb5 {[%clk 0:02:34]}  Red8 {[%clk 0:01:55]} 20. Bxa4 {[%clk 0:02:31]}  Na5 {[%clk 0:01:49]} 21. Bb5 {[%clk 0:02:25]}  c5 {[%clk 0:01:46]} 22. Nd5 {[%clk 0:02:13]}  Bxd5 {[%clk 0:01:42]} 23. Qxd5 {[%clk 0:02:14]}  Rab8 {[%clk 0:01:23]} 24. Rge1 {[%clk 0:02:10]}  Nc6 {[%clk 0:01:23]} 25. c3 {[%clk 0:02:05]}  Ne7 {[%clk 0:01:21]} 26. Qd3 {[%clk 0:02:02]}  Ng6 {[%clk 0:01:18]} 27. Bc4 {[%clk 0:02:00]}  Kh8 {[%clk 0:01:17]} 28. Qd5 {[%clk 0:01:57]}  b5 {[%clk 0:01:15]} 29. Bb3 {[%clk 0:01:43]}  c4 {[%clk 0:01:05]} 30. Bc2 {[%clk 0:01:42]}  Ne7 {[%clk 0:01:04]} 31. Qd4 {[%clk 0:01:39]}  Qe6 {[%clk 0:01:02]} 32. e5 {[%clk 0:01:29]}  d5 {[%clk 0:00:56]} 33. Rg1 {[%clk 0:01:05]}  h5 {[%clk 0:00:39]} 34. g4 {[%clk 0:00:50]}  hxg4 {[%clk 0:00:38]} 35. f5 {[%clk 0:00:51]}  Nxf5 {[%clk 0:00:34]} 36. Qxg4 {[%clk 0:00:52]}  g6 {[%clk 0:00:29]} 37. Bxf5 {[%clk 0:00:52]}  Qxf5 {[%clk 0:00:27]} 38. Qxf5 {[%clk 0:00:52]}  gxf5 {[%clk 0:00:28]} 39. Rd4 {[%clk 0:00:53]}  Rb6 {[%clk 0:00:15]} 40. Rh4+ {[%clk 0:00:51]}  Rh6 {[%clk 0:00:16]} 41. Rxh6# {[%clk 0:00:51]} 1-0

[Event "December 19 Late 2023"]
[Site "https://www.chess.com"]
[Date "2023.12.19"]
[Round "10"]
[White "Shapiro, Viktor"]
[Black "Annaberdiyev, Meylis"]
[Result "0-1"]
[Board "45"]
[TimeControl "180+1"]
[WhiteFideId "4175700"]
[BlackFideId "14000563"]
[WhiteElo "2044"]
[BlackElo "2405"]
[WhiteTeam "RUS"]
[BlackTeam "TKM"]
[WhiteClock "0:00:17"]
[BlackClock "0:00:12"]

1. c4 {[%clk 0:02:53]}  e5 {[%clk 0:02:59]} 2. Nc3 {[%clk 0:02:53]}  Nc6 {[%clk 0:02:59]} 3. g3 {[%clk 0:02:54]}  Bc5 {[%clk 0:03:00]} 4. Bg2 {[%clk 0:02:54]}  d6 {[%clk 0:03:00]} 5. e3 {[%clk 0:02:55]}  a6 {[%clk 0:03:01]} 6. Nge2 {[%clk 0:02:55]}  Ba7 {[%clk 0:03:01]} 7. d4 {[%clk 0:02:55]}  Nge7 {[%clk 0:03:01]} 8. O-O {[%clk 0:02:55]}  h5 {[%clk 0:03:01]} 9. h3 {[%clk 0:02:52]}  h4 {[%clk 0:03:01]} 10. g4 {[%clk 0:02:52]}  f5 {[%clk 0:03:02]} 11. g5 {[%clk 0:02:48]}  f4 {[%clk 0:02:34]} 12. exf4 {[%clk 0:02:45]}  exd4 {[%clk 0:02:29]} 13. Nd5 {[%clk 0:02:43]}  Nf5 {[%clk 0:02:25]} 14. Qd3 {[%clk 0:02:33]}  O-O {[%clk 0:02:24]} 15. Bd2 {[%clk 0:02:30]}  Nb8 {[%clk 0:02:07]} 16. Ba5 {[%clk 0:02:22]}  b6 {[%clk 0:01:55]} 17. Bd2 {[%clk 0:02:19]}  Nd7 {[%clk 0:01:52]} 18. Nxd4 {[%clk 0:01:59]}  Nc5 {[%clk 0:01:51]} 19. Qc3 {[%clk 0:01:56]}  b5 {[%clk 0:01:29]} 20. Nxf5 {[%clk 0:01:53]}  Bxf5 {[%clk 0:01:29]} 21. Be3 {[%clk 0:01:45]}  Qd7 {[%clk 0:01:15]} 22. cxb5 {[%clk 0:01:39]}  axb5 {[%clk 0:01:13]} 23. b4 {[%clk 0:01:39]}  Ne4 {[%clk 0:01:11]} 24. Qxc7 {[%clk 0:01:37]}  Qxc7 {[%clk 0:00:45]} 25. Nxc7 {[%clk 0:01:36]}  Bxe3 {[%clk 0:00:46]} 26. fxe3 {[%clk 0:01:21]}  Ra3 {[%clk 0:00:46]} 27. Nxb5 {[%clk 0:01:12]}  Rxe3 {[%clk 0:00:46]} 28. Rfe1 {[%clk 0:01:13]}  Rg3 {[%clk 0:00:46]} 29. Kh2 {[%clk 0:01:11]}  d5 {[%clk 0:00:26]} 30. Nd4 {[%clk 0:01:04]}  Bd7 {[%clk 0:00:21]} 31. Rf1 {[%clk 0:00:55]}  Rd3 {[%clk 0:00:20]} 32. Rad1 {[%clk 0:00:54]}  Ra3 {[%clk 0:00:20]} 33. Nb3 {[%clk 0:00:39]}  Rxa2 {[%clk 0:00:19]} 34. Rxd5 {[%clk 0:00:38]}  Bc6 {[%clk 0:00:19]} 35. Rd4 {[%clk 0:00:23]}  Rb8 {[%clk 0:00:16]} 36. Rc1 {[%clk 0:00:21]}  Nc3 {[%clk 0:00:15]} 37. Rd2 {[%clk 0:00:19]}  Rxb4 {[%clk 0:00:13]} 38. Rxc3 {[%clk 0:00:19]}  Rxb3 {[%clk 0:00:13]} 39. Rxb3 {[%clk 0:00:16]}  Rxd2 {[%clk 0:00:12]} 40. Kg1 {[%clk 0:00:14]}  Rxg2+ {[%clk 0:00:12]} 41. Kf1 {[%clk 0:00:15]}  Rg3 {[%clk 0:00:13]} 42. Rxg3 {[%clk 0:00:14]}  hxg3 {[%clk 0:00:13]} 43. h4 {[%clk 0:00:15]}  g6 {[%clk 0:00:10]} 44. Kg1 {[%clk 0:00:15]}  Kf7 {[%clk 0:00:11]} 45. Kf1 {[%clk 0:00:16]}  Ke6 {[%clk 0:00:11]} 46. Kg1 {[%clk 0:00:16]}  Kf5 {[%clk 0:00:11]} 47. Kf1 {[%clk 0:00:16]}  Kxf4 {[%clk 0:00:12]} 48. h5 {[%clk 0:00:17]}  gxh5 {[%clk 0:00:11]} 49. g6 {[%clk 0:00:18]}  Bd5 {[%clk 0:00:11]} 50. g7 {[%clk 0:00:18]}  h4 {[%clk 0:00:11]} 51. g8=Q {[%clk 0:00:18]}  Bxg8 {[%clk 0:00:11]} 52. Kg2 {[%clk 0:00:17]}  Kg4 {[%clk 0:00:12]} 0-1

[Event "December 19 Late 2023"]
[Site "https://www.chess.com"]
[Date "2023.12.19"]
[Round "10"]
[White "Cervantes Landeiro, Thalia"]
[Black "Mokshanov, Alexey"]
[Result "1-0"]
[Board "46"]
[TimeControl "180+1"]
[WhiteFideId "3520498"]
[BlackFideId "24121657"]
[WhiteElo "2189"]
[BlackElo "2278"]
[WhiteTeam "USA"]
[BlackTeam "RUS"]
[WhiteClock "0:00:06"]
[BlackClock "0:00:00"]

1. d4 {[%clk 0:02:59]}  d5 {[%clk 0:02:58]} 2. c4 {[%clk 0:02:57]}  e6 {[%clk 0:02:57]} 3. Nc3 {[%clk 0:02:58]}  Nf6 {[%clk 0:02:57]} 4. cxd5 {[%clk 0:02:58]}  exd5 {[%clk 0:02:57]} 5. Bg5 {[%clk 0:02:58]}  Be7 {[%clk 0:02:57]} 6. e3 {[%clk 0:02:59]}  c6 {[%clk 0:02:58]} 7. Bd3 {[%clk 0:02:58]}  O-O {[%clk 0:02:58]} 8. Qc2 {[%clk 0:02:57]}  Nbd7 {[%clk 0:02:59]} 9. Nge2 {[%clk 0:02:56]}  Re8 {[%clk 0:02:59]} 10. O-O {[%clk 0:02:55]}  Nf8 {[%clk 0:03:00]} 11. f3 {[%clk 0:02:53]}  Be6 {[%clk 0:03:01]} 12. Rad1 {[%clk 0:02:52]}  Rc8 {[%clk 0:02:59]} 13. e4 {[%clk 0:02:40]}  dxe4 {[%clk 0:02:59]} 14. fxe4 {[%clk 0:02:40]}  Ng4 {[%clk 0:02:59]} 15. Bxe7 {[%clk 0:02:40]}  Qxe7 {[%clk 0:03:00]} 16. Qd2 {[%clk 0:02:39]}  c5 {[%clk 0:03:00]} 17. d5 {[%clk 0:02:36]}  Bd7 {[%clk 0:02:56]} 18. h3 {[%clk 0:02:23]}  Ne5 {[%clk 0:02:53]} 19. Nf4 {[%clk 0:02:15]}  Qg5 {[%clk 0:02:45]} 20. Be2 {[%clk 0:02:06]}  Nfg6 {[%clk 0:02:26]} 21. Nxg6 {[%clk 0:02:01]}  Qxg6 {[%clk 0:02:27]} 22. Kh2 {[%clk 0:01:51]}  Rcd8 {[%clk 0:02:13]} 23. Qf4 {[%clk 0:01:50]}  a6 {[%clk 0:02:07]} 24. a4 {[%clk 0:01:25]}  Bc8 {[%clk 0:01:50]} 25. a5 {[%clk 0:01:22]}  Bd7 {[%clk 0:01:37]} 26. Qf2 {[%clk 0:01:11]}  Rc8 {[%clk 0:01:28]} 27. d6 {[%clk 0:01:06]}  Be6 {[%clk 0:01:26]} 28. Nd5 {[%clk 0:01:05]}  Bxd5 {[%clk 0:01:26]} 29. Rxd5 {[%clk 0:01:05]}  Qxe4 {[%clk 0:01:20]} 30. Rfd1 {[%clk 0:00:43]}  Rcd8 {[%clk 0:01:11]} 31. d7 {[%clk 0:00:32]}  Re7 {[%clk 0:01:02]} 32. Bh5 {[%clk 0:00:19]}  g6 {[%clk 0:00:58]} 33. Qxc5 {[%clk 0:00:19]}  gxh5 {[%clk 0:00:55]} 34. Qc7 {[%clk 0:00:12]}  Nc6 {[%clk 0:00:20]} 35. Qxb7 {[%clk 0:00:11]}  Qf4+ {[%clk 0:00:16]} 36. Kh1 {[%clk 0:00:11]}  Re6 {[%clk 0:00:10]} 37. Qxa6 {[%clk 0:00:07]}  h4 {[%clk 0:00:07]} 38. Qb6 {[%clk 0:00:07]}  Kg7 {[%clk 0:00:03]} 39. a6 {[%clk 0:00:07]}  Qb4 {[%clk 0:00:02]} 40. Qf2 {[%clk 0:00:05]}  Qa4 {[%clk 0:00:01]} 41. R1d2 {[%clk 0:00:02]}  Kf8 {[%clk 0:00:01]} 42. Rg5 {[%clk 0:00:02]}  Qxa6 {[%clk 0:00:02]} 43. Qxh4 {[%clk 0:00:02]}  Qa1+ {[%clk 0:00:03]} 44. Kh2 {[%clk 0:00:02]}  Rg6 {[%clk 0:00:02]} 45. Rxg6 {[%clk 0:00:02]}  fxg6 {[%clk 0:00:02]} 46. Qf6+ {[%clk 0:00:02]}  Kg8 {[%clk 0:00:03]} 47. Qe6+ {[%clk 0:00:02]}  Kg7 {[%clk 0:00:03]} 48. Rf2 {[%clk 0:00:02]}  Qa5 {[%clk 0:00:02]} 49. Rf7+ {[%clk 0:00:02]}  Kh6 {[%clk 0:00:01]} 50. Qe3+ {[%clk 0:00:02]}  Qg5 {[%clk 0:00:01]} 51. Rxh7+ {[%clk 0:00:02]}  Kxh7 {[%clk 0:00:02]} 52. Qxg5 {[%clk 0:00:03]}  Rxd7 {[%clk 0:00:02]} 53. Qh4+ {[%clk 0:00:02]}  Kg7 {[%clk 0:00:02]} 54. Qe4 {[%clk 0:00:03]}  Rd6 {[%clk 0:00:02]} 55. b4 {[%clk 0:00:03]}  Kf6 {[%clk 0:00:03]} 56. b5 {[%clk 0:00:03]}  Ne5 {[%clk 0:00:03]} 57. Qf4+ {[%clk 0:00:04]}  Ke6 {[%clk 0:00:04]} 58. Qb4 {[%clk 0:00:04]}  Rd3 {[%clk 0:00:04]} 59. b6 {[%clk 0:00:05]}  Rd8 {[%clk 0:00:03]} 60. b7 {[%clk 0:00:05]}  Rb8 {[%clk 0:00:04]} 61. Qb6+ {[%clk 0:00:05]}  Kd5 {[%clk 0:00:04]} 62. Qc7 {[%clk 0:00:05]}  Nc6 {[%clk 0:00:05]} 63. Qd7+ {[%clk 0:00:06]}  Kc5 {[%clk 0:00:05]} 64. Qc7 {[%clk 0:00:06]}  Kb5 {[%clk 0:00:06]} 65. h4 {[%clk 0:00:06]}  Rh8 {[%clk 0:00:05]} 66. Kh3 {[%clk 0:00:06]}  Nb8 {[%clk 0:00:00]} 67. Qc8 {[%clk 0:00:06]} 1-0

[Event "December 19 Late 2023"]
[Site "https://www.chess.com"]
[Date "2023.12.19"]
[Round "10"]
[White "Domingo Nunez, Alejandro"]
[Black "Sivakumar, Shaashwath"]
[Result "1-0"]
[Board "52"]
[TimeControl "180+1"]
[WhiteFideId "22245561"]
[BlackFideId "30912156"]
[WhiteElo "2252"]
[BlackElo "2137"]
[WhiteTeam "ESP"]
[BlackTeam "USA"]
[WhiteClock "0:00:51"]
[BlackClock "0:00:11"]

1. e4 {[%clk 0:02:58]}  c5 {[%clk 0:02:59]} 2. d4 {[%clk 0:02:58]}  cxd4 {[%clk 0:02:58]} 3. c3 {[%clk 0:02:59]}  Nf6 {[%clk 0:02:56]} 4. e5 {[%clk 0:02:59]}  Nd5 {[%clk 0:02:56]} 5. Nf3 {[%clk 0:02:59]}  d6 {[%clk 0:02:56]} 6. Qxd4 {[%clk 0:02:59]}  e6 {[%clk 0:02:55]} 7. Nbd2 {[%clk 0:02:58]}  Nc6 {[%clk 0:02:53]} 8. Bb5 {[%clk 0:02:58]}  Bd7 {[%clk 0:02:52]} 9. Bxc6 {[%clk 0:02:58]}  Bxc6 {[%clk 0:02:53]} 10. Nc4 {[%clk 0:02:57]}  f6 {[%clk 0:02:51]} 11. exd6 {[%clk 0:02:53]}  b5 {[%clk 0:02:44]} 12. Ne3 {[%clk 0:02:45]}  Bxd6 {[%clk 0:02:39]} 13. Qg4 {[%clk 0:02:42]}  Qe7 {[%clk 0:02:31]} 14. Nd4 {[%clk 0:02:37]}  Nxe3 {[%clk 0:02:18]} 15. Bxe3 {[%clk 0:02:34]}  Bd7 {[%clk 0:02:17]} 16. Nxb5 {[%clk 0:02:26]}  Bxb5 {[%clk 0:02:13]} 17. Qh5+ {[%clk 0:02:26]}  g6 {[%clk 0:02:04]} 18. Qxb5+ {[%clk 0:02:26]}  Kf7 {[%clk 0:02:04]} 19. Rd1 {[%clk 0:02:23]}  Rhd8 {[%clk 0:01:49]} 20. O-O {[%clk 0:01:48]}  Rab8 {[%clk 0:01:42]} 21. Qe2 {[%clk 0:01:44]}  Qc7 {[%clk 0:01:40]} 22. h3 {[%clk 0:01:38]}  Qa5 {[%clk 0:01:37]} 23. b4 {[%clk 0:01:34]}  Qe5 {[%clk 0:01:35]} 24. g3 {[%clk 0:01:30]}  Qxc3 {[%clk 0:01:32]} 25. Bxa7 {[%clk 0:01:27]}  Rxb4 {[%clk 0:01:17]} 26. Qa6 {[%clk 0:01:05]}  Qe5 {[%clk 0:00:29]} 27. Rfe1 {[%clk 0:00:55]}  Re4 {[%clk 0:00:14]} 28. Rxe4 {[%clk 0:00:53]}  Qxe4 {[%clk 0:00:14]} 29. Rxd6 {[%clk 0:00:53]}  Qe1+ {[%clk 0:00:11]} 30. Kh2 {[%clk 0:00:51]} 1-0

[Event "December 19 Late 2023"]
[Site "https://www.chess.com"]
[Date "2023.12.19"]
[Round "10"]
[White "Cobysters"]
[Black "Blanco Diez, David"]
[Result "1-0"]
[Board "54"]
[TimeControl "180+1"]
[BlackFideId "32032927"]
[WhiteElo "2579"]
[BlackElo "2170"]
[BlackTeam "ESP"]
[WhiteClock "0:00:52"]
[BlackClock "0:00:00"]

1. c4 {[%clk 0:03:00]}  e5 {[%clk 0:02:57]} 2. Nc3 {[%clk 0:03:00]}  Bb4 {[%clk 0:02:54]} 3. e4 {[%clk 0:02:59]}  Nf6 {[%clk 0:02:51]} 4. Nge2 {[%clk 0:02:59]}  O-O {[%clk 0:02:44]} 5. g3 {[%clk 0:02:59]}  Nc6 {[%clk 0:02:23]} 6. Bg2 {[%clk 0:02:58]}  Bc5 {[%clk 0:02:20]} 7. O-O {[%clk 0:02:58]}  a5 {[%clk 0:02:16]} 8. d3 {[%clk 0:02:58]}  h6 {[%clk 0:02:16]} 9. Kh1 {[%clk 0:02:58]}  d6 {[%clk 0:02:11]} 10. f4 {[%clk 0:02:56]}  Ng4 {[%clk 0:02:05]} 11. Qe1 {[%clk 0:02:50]}  Ne3 {[%clk 0:02:02]} 12. Bxe3 {[%clk 0:02:34]}  Bxe3 {[%clk 0:02:03]} 13. Nd5 {[%clk 0:02:34]}  Bc5 {[%clk 0:02:00]} 14. f5 {[%clk 0:02:31]}  Nb4 {[%clk 0:01:57]} 15. Qd2 {[%clk 0:02:29]}  Nxd5 {[%clk 0:01:45]} 16. cxd5 {[%clk 0:02:25]}  Qg5 {[%clk 0:01:46]} 17. Qc2 {[%clk 0:02:20]}  f6 {[%clk 0:01:29]} 18. Bf3 {[%clk 0:02:10]}  Bd7 {[%clk 0:01:26]} 19. Rae1 {[%clk 0:02:07]}  Bb4 {[%clk 0:01:16]} 20. Nc3 {[%clk 0:02:03]}  h5 {[%clk 0:01:02]} 21. a3 {[%clk 0:01:56]}  Bc5 {[%clk 0:00:58]} 22. Qe2 {[%clk 0:01:50]}  h4 {[%clk 0:00:57]} 23. gxh4 {[%clk 0:01:48]}  Qxh4 {[%clk 0:00:58]} 24. Qd2 {[%clk 0:01:41]}  Kf7 {[%clk 0:00:55]} 25. Re2 {[%clk 0:01:41]}  Rh8 {[%clk 0:00:51]} 26. Rg2 {[%clk 0:01:38]}  Rh7 {[%clk 0:00:45]} 27. Ne2 {[%clk 0:01:32]}  Rah8 {[%clk 0:00:43]} 28. Ng3 {[%clk 0:01:25]}  a4 {[%clk 0:00:30]} 29. Rc1 {[%clk 0:01:06]}  Bb5 {[%clk 0:00:21]} 30. Nf1 {[%clk 0:00:58]}  Qf4 {[%clk 0:00:14]} 31. Qxf4 {[%clk 0:00:57]}  exf4 {[%clk 0:00:15]} 32. Be2 {[%clk 0:00:55]}  f3 {[%clk 0:00:13]} 33. Bxf3 {[%clk 0:00:55]}  Bxd3 {[%clk 0:00:14]} 34. Ng3 {[%clk 0:00:52]}  Rh4 {[%clk 0:00:13]} 35. Rd2 {[%clk 0:00:50]}  Be3 {[%clk 0:00:12]} 36. Rxc7+ {[%clk 0:00:50]}  Ke8 {[%clk 0:00:09]} 37. Rc8+ {[%clk 0:00:50]}  Kd7 {[%clk 0:00:07]} 38. Rxh8 {[%clk 0:00:50]}  Rxh8 {[%clk 0:00:04]} 39. Rxd3 {[%clk 0:00:50]}  Bf4 {[%clk 0:00:02]} 40. Kg2 {[%clk 0:00:50]}  Rc8 {[%clk 0:00:02]} 41. Rc3 {[%clk 0:00:51]}  Rxc3 {[%clk 0:00:02]} 42. bxc3 {[%clk 0:00:52]}  Bc1 {[%clk 0:00:01]} 43. Bd1 {[%clk 0:00:51]}  Bxa3 {[%clk 0:00:02]} 44. Bxa4+ {[%clk 0:00:51]}  Kc7 {[%clk 0:00:02]} 45. c4 {[%clk 0:00:51]}  Kb6 {[%clk 0:00:01]} 46. Nh5 {[%clk 0:00:52]}  Kc5 {[%clk 0:00:02]} 47. Bb5 {[%clk 0:00:52]}  Bb2 {[%clk 0:00:00]} 48. Nxg7 {[%clk 0:00:52]} 1-0